Cogmind - Beta 13 @@@ ROGUE MODE // 2024.04.20 @ 12:49:31 Player: Olafz Result: Destroyed by Autobeam Turret with Autobeam Performance ------------- Evolutions (0) 0 Regions Visited (3) 600 Robots Destroyed (18) 90 Value Destroyed (497) 497 Prototype IDs (0) 0 Alien Tech Used (0) 0 Bonus (0) 0 TOTAL SCORE: 1187 Bonus ------- None Cogmind --------- Core Integrity 0/250 Matter 278/300 Energy 196/200 System Corruption 0% Temperature Cool (16) Movement Core (550) Ox10 Location -10/Subcaves Parts ------- > --- POWER (1) -------- Subdweller Power Source > --- PROPULSION (2) --- (None) > --- UTILITY (2) ------ Disposable Heat Sink Large Storage Unit > --- WEAPON (2) ------- Subdweller Laser Barrage Gun > --- INVENTORY (15) --- Subdweller Power Source Subdweller Power Source Subdweller Power Source Heat Sink Medium Storage Unit Makeshift Light Armor Plating Cobbler Unit Heavy Riot Gun Makeshift Laser Particle Cannon Battle Rifle Makeshift Sword Peak State ------------ > --- POWER ------------ Makeshift Power Source > --- PROPULSION ------- Aluminum Leg Aluminum Leg > --- UTILITY ---------- Improved Heat Sink Large Storage Unit > --- WEAPON ----------- Particle Cannon Particle Cannon > --- INVENTORY -------- Ion Engine Ion Engine Subdweller Power Source Light Nuclear Core Light Treads Light Treads Heat Sink Medium Storage Unit Propulsion Shielding Cobbler Unit Particle Cannon Particle Cannon [Rating: 16] Favorites ----------- Power Light Nuclear Core Engine Makeshift Power Source Power Core Light Nuclear Core Propulsion Aluminum Leg Leg Aluminum Leg Utility Large Storage Unit Device Improved Heat Sink Storage Large Storage Unit Protection Propulsion Shielding Weapon Particle Cannon Energy Gun Subdweller Laser Energy Cannon Particle Cannon Ballistic Gun Assault Rifle Build | -11 -10 -10 -10 ------- Run | Yrd Mat Min Sub Slots Evolved . | . . . . Power . | . . . . Propulsion . | . . . . Utility . | . . . . Weapon . | . . . . Parts Attached 15 | . 3 3 9 Power 5 | . . 1 4 Engine 4 | . . . 4 Core 1 | . . 1 . Reactor . | . . . . Propulsion . | . . . . Treads . | . . . . Leg . | . . . . Wheel . | . . . . Hover . | . . . . Flight . | . . . . Utility 4 | . 1 2 1 Device 2 | . . 1 1 Storage 1 | . 1 . . Processor . | . . . . Hackware . | . . . . Protection 1 | . . 1 . Artifact . | . . . . Weapon 6 | . 2 . 4 Energy Gun 1 | . . . 1 Energy Cannon 4 | . 2 . 2 Ballistic Gun 1 | . . . 1 Ballistic Cannon . | . . . . Launcher . | . . . . Special Weapon . | . . . . Impact Weapon . | . . . . Slashing Weapon . | . . . . Piercing Weapon . | . . . . Special Melee Weapon . | . . . . Unidentified Prototypes . | . . . . Parts Lost 6 | . . . 6 Power 1 | . . . 1 Propulsion 2 | . . . 2 Utility 1 | . . . 1 Weapon 2 | . . . 2 Highest Loss Streak 3 | . . . 3 To Critical Strikes . | . . . . Average Slot Usage (%) 96 | . 83 99 96 Engine 7 | . 14 . 11 Core 6 | . . 13 2 Leg 26 | . 28 28 25 Device 12 | . . 13 13 Storage 14 | . 14 14 14 Energy Gun 1 | . 4 . 2 Energy Cannon 25 | . 17 28 25 Naked Turns . | . . . . Heaviest Build 37 | 13 33 34 37 Greatest Support 20 | 20 20 20 20 Greatest Overweight (x) 3 | . 1 1 3 Average Overweight (x) 1 | . . 1 1 Largest Inventory Capacity 15 | . 15 15 15 Average Capacity 14 | . 14 15 15 Most Carried 15 | . 9 9 15 Average Carried 11 | . 6 8 13 Final Capacity 15 | 8 15 15 15 Final Carried 13 | 6 6 9 13 Class Distribution -------------------- 100% | Mutant Dominant Class ---------------- Mutant | -10/Materials Mutant | -10/Mines Mutant | -10/Subcaves Resources | -11 -10 -10 -10 ----------- Run | Yrd Mat Min Sub Matter Collected 330 | 200 . 60 70 Remotely . | . . . . Salvage Created 694 | . 21 97 576 Parts 31 | . 1 3 27 Haulers Intercepted . | . . . . Recyclers Shooed . | . . . . Parts Field Recycled . | . . . . Retrieved Matter . | . . . . Parts Self-Destructed 3 | . . . 3 Prevented . | . . . . Kills | -11 -10 -10 -10 ------- Run | Yrd Mat Min Sub Combat Hostiles Destroyed 17 | . . 2 15 Guns 3 | . . . 3 Cannons 12 | . . 2 10 AOE 1 | . . . 1 Classes Destroyed 5 | . 1 1 3 Watcher 1 | . 1 . . Swarmer 7 | . . . 7 Grunt 2 | . . 2 . Cobbler 1 | . . . 1 Subdweller 8 | . . . 8 Best Kill Streak 4 | . 1 2 4 Combat Bots Only 4 | . . 2 4 Max Kills in Single Turn 2 | . 1 1 2 Gunslinging 1 | . . . 1 Exploded 1 | . . . 1 Melee . | . . . . Uniques/NPCs Destroyed . | . . . . Combat | -11 -10 -10 -10 -------- Run | Yrd Mat Min Sub Hostile Shots Fired 88 | . . 3 85 Missed 21 | . . 2 19 Damage Taken 1069 | . . 12 1057 Core 253 | . . . 253 Absorbed by Shields . | . . . . Redirected to Shielding 3 | . . 3 . Core Remaining (%) 100 | 100 . . . Volleys Fired 54 | . 1 4 49 Largest 2 | . 2 2 2 Hottest 148 | . 136 136 148 Shots Fired 106 | . 2 8 96 Gun 17 | . . . 17 Cannon 89 | . 2 8 79 Launcher . | . . . . Special . | . . . . Kinetic 3 | . . . 3 Thermal 103 | . 2 8 93 Explosive . | . . . . Electromagnetic . | . . . . Robot Hit Streak 17 | . 1 5 17 Robot Miss Streak 3 | . 1 1 3 Penetration Max . | . . . . Secondary Targets 2 | . . . 2 Max Gunslinging Chain 1 | . . . 1 Shots Hit Robots 68 | . 1 7 60 Core Hits 27 | . 1 3 23 Critical Kills 1 | . . . 1 Critical Parts Destroyed 1 | . . . 1 Critical Strikes 2 | . . . 2 Meltdown 1 | . . . 1 Destroy 1 | . . . 1 Melee Attacks . | . . . . Impact . | . . . . Slashing . | . . . . Piercing . | . . . . Sneak Attacks . | . . . . Combat Hostiles . | . . . . Follow-up Attacks . | . . . . Damage Inflicted 1429 | . 20 144 1265 Guns 243 | . . . 243 Cannons 1186 | . 20 144 1022 Explosions . | . . . . Melee . | . . . . Ramming . | . . . . Kinetic 36 | . . . 36 Thermal 1393 | . 20 144 1229 Explosive . | . . . . Electromagnetic . | . . . . Impact . | . . . . Slashing . | . . . . Piercing . | . . . . Highest Corruption . | . . . . Average Corruption . | . . . . Corruption Purged . | . . . . Corruption Blocked . | . . . . Overload Shots . | . . . . Overflow Damage 14 | . . . 14 Projectiles 14 | . . . 14 Explosions . | . . . . Melee . | . . . . Knockbacks . | . . . . Impact . | . . . . Kinetic . | . . . . Secondary . | . . . . Self-Inflicted Damage . | . . . . Shots . | . . . . Rammed . | . . . . Targets Rammed . | . . . . Kicked . | . . . . Crushed . | . . . . Highest Temperature 306 | . 75 306 150 Average Temperature 67 | . 43 164 44 Received Heat Transfer 237 | . . 6 231 Effects 1 | . . 1 . Interference 1 | . . 1 . Siege Activations . | . . . . Robots Corrupted . | . . . . Combat Hostiles . | . . . . Parts Fried . | . . . . Impact Corruptions . | . . . . Robots Melted 1 | . . . 1 Combat Hostiles 1 | . . . 1 Parts Melted 3 | . . . 3 Heat Transferred 2248 | . 37 259 1952 Parts Sabotaged . | . . . . Parts Stolen . | . . . . Parts Stripped . | . . . . Power Chain Reactions . | . . . . Alert | -11 -10 -10 -10 ------- Run | Yrd Mat Min Sub Peak Influence 67 | . 7 67 . Initial 2 | . . 2 . Average 18 | . 2 21 . Maximum Alert Level . | . . . . Low Security (%) 100 | . 100 100 . Level 1 . | . . . . Level 2 . | . . . . Level 3 . | . . . . Level 4 . | . . . . Level 5 . | . . . . High Security . | . . . . Max Security . | . . . . Squads Dispatched . | . . . . Investigation . | . . . . Extermination . | . . . . Reinforcement . | . . . . Assault . | . . . . Garrison . | . . . . Intercept . | . . . . Searches Triggered . | . . . . Construction Impeded . | . . . . Haulers Reinforced . | . . . . Active Scanning Responses . | . . . . Cargo Convoy Interrupts . | . . . . Stealth | -11 -10 -10 -10 --------- Run | Yrd Mat Min Sub Distress Signals . | . . . . Communications Jammed . | . . . . Distress Signals . | . . . . Times Spotted 19 | . 1 2 16 Peak Tracking Total 6 | . 1 2 6 Tactical Retreats 2 | . . . 2 Traps | -11 -10 -10 -10 ------- Run | Yrd Mat Min Sub Traps Triggered . | . . . . Indirectly . | . . . . Trap Hack Attempts . | . . . . Triggered . | . . . . Disarmed . | . . . . Reprogrammed . | . . . . Reused . | . . . . Traps Extracted . | . . . . Installed . | . . . . Triggered 1 | . . . 1 Machines | -11 -10 -10 -10 ---------- Run | Yrd Mat Min Sub Machines Disabled 1 | . . 1 . Max in Single Turn 1 | . . 1 . Machines Repaired . | . . . . Machines Dismantled . | . . . . Machines Sabotaged . | . . . . Overloaded Fab Kills . | . . . . Hacking | -11 -10 -10 -10 --------- Run | Yrd Mat Min Sub Machines Accessed 3 | . 2 . 1 Terminals 2 | . 2 . . Fabricators . | . . . . Repair Stations . | . . . . Recycling Units . | . . . . Scanalyzers . | . . . . Garrison Access . | . . . . Total Hacks 4 | . 3 . 1 Successful 4 | . 3 . 1 Failed . | . . . . Catastrophic . | . . . . Database Lockouts . | . . . . Manual 2 | . 2 . . Terminals 3 | . 3 . . Fabricators . | . . . . Repair Stations . | . . . . Recycling Units . | . . . . Scanalyzers . | . . . . Garrison Access . | . . . . Terminal Hacks 2 | . 1 . 1 Record 1 | . . . 1 Alert Level 1 | . 1 . . Fabricator Hacks . | . . . . Repair Station Hacks . | . . . . Recycling Unit Hacks . | . . . . Scanalyzer . | . . . . Garrison Access Hacks . | . . . . Unauthorized Hacks 2 | . 2 . . Terminals 2 | . 2 . . Botnet 2 | . 2 . . Fabricators . | . . . . Repair Stations . | . . . . Recycling Units . | . . . . Scanalyzers . | . . . . Garrison Access . | . . . . Data Cores Recovered . | . . . . Used . | . . . . Hacking Detections 2 | . 2 . . Full Trace Events . | . . . . Feedback Events . | . . . . Feedback Blocked . | . . . . Robot Schematics Acquired . | . . . . Robots Built . | . . . . Authchips . | . . . . Time . | . . . . Total Robot Build Rating . | . . . . Part Schematics Acquired . | . . . . Parts Built . | . . . . Authchips . | . . . . Time . | . . . . Total Part Build Rating . | . . . . Parts Repaired . | . . . . Time . | . . . . Parts Recycled . | . . . . Recycled Matter . | . . . . Retrieved Matter . | . . . . Retrieved Components . | . . . . Parts Scanalyzed . | . . . . Part Schematics Acquired . | . . . . Parts Damaged . | . . . . Bothacking | -11 -10 -10 -10 ------------ Run | Yrd Mat Min Sub Used RIF Installer . | . . . . Robots Hacked . | . . . . Non-combat . | . . . . Combat . | . . . . Robot Hacks Applied . | . . . . Relay Couplers Released . | . . . . Fabnet Peak Effective % . | . . . . Robots Rewired . | . . . . Allies Hacked . | . . . . Hacks Repelled . | . . . . Allies | -11 -10 -10 -10 -------- Run | Yrd Mat Min Sub Total Allies . | . . . . Largest Group . | . . . . Highest-Rated Group . | . . . . Highest-Rated Ally . | . . . . Total Orders . | . . . . Ally Attacks . | . . . . Total Damage . | . . . . Kills . | . . . . Allies Corrupted . | . . . . Allies Melted . | . . . . Intel | -11 -10 -10 -10 ------- Run | Yrd Mat Min Sub Robot Analysis Total . | . . . . Derelict Logs Recovered 3 | . . 2 1 Drone Launches . | . . . . Drone Recoveries . | . . . . Exploration | -11 -10 -10 -10 ------------- Run | Yrd Mat Min Sub Turns Passed 2647 | . 220 1063 1364 Spaces Moved 1101 | 1 116 406 578 Core . | . . . . Treads . | . . . . Legs 1101 | 1 116 406 578 Wheels . | . . . . Hover . | . . . . Flight . | . . . . Fastest Speed 120 | 120 120 190 190 Average Speed 196 | 120 177 190 205 Slowest Speed 330 | 120 190 190 330 Overloaded Moves . | . . . . Propulsion Burnouts . | . . . . Robots Hopped . | . . . . Cave-ins Triggered . | . . . . Exploration Rate (%) 37 | 2 30 77 39 Regions Visited 3 Branch Regions 2 Pre-discovered Areas 4 | . . 2 2 Known Exits Taken . | . . . . Unknown Exits Taken 3 | 1 1 1 . Scrap Searched 7 | . . 2 5 Spaces Dug . | . . . . Terrain Destroyed 2 | . . . 2 Melee . | . . . . Projectile 2 | . . . 2 AOE . | . . . . Terrain Rammed . | . . . . Walls Destroyed . | . . . . Machines Disabled . | . . . . Actions | -11 -10 -10 -10 --------- Run | Yrd Mat Min Sub Total 1485 | . 131 690 664 Wait 279 | . . 275 4 Move 1098 | . 115 405 578 Hop . | . . . . Pick Up 17 | . 3 1 13 Fast Attach 7 | . 3 3 1 Attach 6 | . . . 6 Detach 7 | . 3 2 2 Swap 2 | . . . 2 Drop 15 | . 6 . 9 Fire 54 | . 1 4 49 Melee . | . . . . Ram . | . . . . Kick . | . . . . Crush . | . . . . Escape Stasis . | . . . . Rewire . | . . . . Trap . | . . . . Miscellaneous . | . . . . Route ------- -11/Scrapyard -10/Materials -10/Mines (discovered 3 exits: [*Mat x2] / *Sub) -10/Subcaves (discovered 2 exits: [*Mat x2]) History --------- Turn | Location | Event 1 | -11/Scrapyard | Discovered new exit (range 0) 1 | -11/Scrapyard | Entered Materials 179 | -10/Materials | Discovered new exit (range 7) 221 | -10/Materials | Entered Mines 258 | -10/Mines | Discovered new exit (range 11) 318 | -10/Mines | Build established: Mutant 767 | -10/Mines | Discovered new exit (range 5) 1243 | -10/Mines | Learned location of Storage (-7) 1249 | -10/Mines | Learned location of Zion (-7) 1279 | -10/Mines | Discovered new exit (range 3) 1284 | -10/Mines | Entered Subcaves 1287 | -10/Subcaves | Met a Zionite searching for "candidates" 1455 | -10/Subcaves | Shifting Twisted Machinery released Sub. Machine Gun 1484 | -10/Subcaves | Ambushed by angry Subdweller bent on revenge 1595 | -10/Subcaves | Discovered new exit (range 11) 1801 | -10/Subcaves | Visited Clippyterm 1819 | -10/Subcaves | Shifting Twisted Machinery released Flamer 1841 | -10/Subcaves | Shifting Twisted Machinery released Flamer 1877 | -10/Subcaves | Ambushed by Subdwellers from Twisted Machinery 2018 | -10/Subcaves | Discovered new exit (range 8) 2396 | -10/Subcaves | Core integrity fell below 50% 2428 | -10/Subcaves | Lost 3 parts (1p1n1w) 2637 | -10/Subcaves | Core integrity fell below 20% 2648 | -10/Subcaves | Destroyed by Autobeam Turret with Autobeam Last Messages --------------- Propulsion Shielding crushed and broken. Acquired Hvy. Riot Gun. Particle Cannon destroyed. Aluminum Leg destroyed. Mak. Power Source destroyed. CW-I17(R) suffers critical hit (Destroy). Destroyed Sub. Monowheel. Sub. Power Source melted. CW-I17(R) destroyed. ND-5PU(R) destroyed. Acquired 10 matter. Aluminum Leg destroyed. S-10 Pest destroyed. Particle Cannon destroyed. S-10 Pest destroyed. Switching to secondary target: S-10 Pest. Flight Unit fries itself beyond repair. S-10 Pest destroyed. Switching to secondary target: S-10 Pest. S-10 Pest destroyed. Map ----- +----------------------------------------------------+ | ?????????????????????????????????????????????????? | | ????????????????????????????????????????????????## | | ???????????????????????????????????????????????##= | | ???????????????????????????????????????????????#"% | | ???????????????????????????????????????????????#] | | ???????????????????????????????????????????????#]" | | ???????????????????????????????????????????????#%# | | ???????????????????????????????????????????????### | | ?????????????????????????????????????????????????? | | ?????????????????????????????????????????????????? | | ?????????????????????????????????????????????????? | | ??????????????????? ? ???????????????????????????? | | ?????????????????? * ???????????????????????????? | | ??????????????????? % ???????????????????????????? | | ???????????????????#=% ??????????????????????????? | | ???????????????????#[ %??????????????????????????? | | ????????????????##?#=%*??????????????????????????? | | ????????????????# ## [*##????????????????????????? | | ????????????????# ?????????#####??????????? | | ????????????????# ??#####??# ##?????????? | | ???????????? ### ??# ##?# ##????????? | | ???????????? ##?# #?## ####?????? | | ??????????? ### ##### ##????? | | ??????????????? ## #????? | | ???????????????? ?????# ##??### | | ?????????????? ## @ ##??## # | | ?????????????? ##########??## | | ???????????? #?######?#### | | ??????????? ### ### # | | ??????????? #### ### | | ????????????????## ##??## | | ?????????????????##??????## #### # # | | ??????????????????????????########### #??####### | | ????????????????????????????????????###????????### | | ?????????????????????????????????????????????????? | | ?????????????????????????????????????????????????? | | ?????????????????????????????????????????????????? | | ?????????????????????????????????????????????????? | | ?????????????????????????????????????????????????? | | ?????????????????????????????????????????????????? | | ?????????????????????????????????????????????????? | | ?????????????????????????????????????????????????? | | ?????????????????????????????????????????????????? | | ?????????????????????????????????????????????????? | | ?????????????????????????????????????????????????? | | ?????????????????????????????????????????????????? | | ?????????????????????????????????????????????????? | | ?????????????????????????????????????????????????? | | | | | +----------------------------------------------------+ Best States ------------- Heat Dissipation 39 Coolant Potential 50 Energy Generation 15 Energy Capacity 250 Matter Stores 300 Matter Capacity 300 Sight Range 16 Terrain Scan Density 10 Propulsion Shielding 33 Evasion (%) 55 Item Schematics ----------------- None Robot Schematics ------------------ None Fabricated ------------ Nothing Alien Tech Used ----------------- None Achievements -------------- None Challenges ------------ None Game ------ Seed DirtyPlasmaBarrier Manual? 0 Play Time 00:14:46 Cumulative 72.3 hours Start 2024.04.20 @ 12:37:05 End 2024.04.20 @ 12:49:31 Sessions 1 Manual Loads 0 Difficulty Rogue Special Mode None Game No. 154 Rogue 152 Adventurer 2 Explorer 0 Win Type - Total 1 Types 1/0/0/0/0/0/0/0/0 Lore% 46 Gallery% 47 Achievement% 36 Wizard Run 0 Options --------- Layout 0 ASCII 0 Keyboard 1 Movement Numpad Keybinds 1 Fullscreen 2 Font 18/SmallcapsGlow Map View 76x50 Zoom Use 0% Tactical HUD 1 Map Filters NONE Filters NONE Steam 1 RUN: 4fae5c0a-3051-4396-b050-f5f5d4ba9944